[Event "23rd ETCC Women 2021"]
[Site "Catez"]
[Date "2021.11.15"]
[Round "4.26"]
[White "Shapir, Maya"]
[Black "Milliet, Sophie"]
[Result "0-1"]
[ECO "A10"]
[WhiteElo "2256"]
[BlackElo "2418"]
[Annotator "NA"]
[PlyCount "90"]
[EventDate "2021.11.08"]
[EventType "team-tourn"]
[EventCountry "SLO"]
[SourceTitle "playchess.com"]
[Source "ChessBase"]
[SourceQuality "1"]
[WhiteTeam "Israel"]
[BlackTeam "France"]
[WhiteTeamCountry "ISR"]
[BlackTeamCountry "FRA"]
[TimeControl "40/5400+30:1800+30"]

1. c4 {[%emt 0:00:47]} b6 {[%emt 0:02:51]} 2. Nc3 {[%emt 0:02:45]} Bb7 {
[%emt 0:00:20]} 3. e4 {[%emt 0:02:41]} e5 {[%emt 0:00:27]} 4. Nf3 {[%emt 0:03:
05]} Nc6 {[%emt 0:02:31]} 5. d3 {[%emt 0:01:27]} Nf6 {[%emt 0:07:19]} 6. g3 {
[%emt 0:03:00]} Bc5 {[%emt 0:00:42]} 7. Bh3 {[%emt 0:03:22]} d6 {[%emt 0:04:55]
} 8. Nd5 {[%emt 0:04:26]} h6 {[%emt 0:02:42]} 9. O-O {[%emt 0:03:45]} O-O {
[%emt 0:00:58]} 10. Nh4 {[%emt 0:08:17]} Nxd5 {[%emt 0:09:05]} 11. cxd5 {
[%emt 0:02:36]} Nd4 {[%emt 0:00:09]} 12. Rb1 {[%emt 0:10:06]} a5 {[%emt 0:00:
15]} 13. Be3 {[%emt 0:00:18]} c6 {[%emt 0:11:21]} 14. Bxd4 {[%emt 0:10:47]}
Bxd4 {[%emt 0:00:04]} 15. dxc6 {[%emt 0:05:25]} Bxc6 {[%emt 0:00:01]} 16. Nf5 {
[%emt 0:02:26]} Bd7 {[%emt 0:11:44]} 17. Qg4 {[%emt 0:01:57]} Bxf5 {[%emt 0:00:
07]} 18. Qxf5 {[%emt 0:00:17]} Ra7 {[%emt 0:05:04]} 19. Qf3 {[%emt 0:05:09]}
Rc7 {[%emt 0:01:24]} 20. Qe2 {[%emt 0:00:14]} Qg5 {[%emt 0:09:29]} 21. Rfd1 {
[%emt 0:05:59]} Re8 {[%emt 0:01:59]} 22. Qd2 {[%emt 0:04:00]} Qxd2 {[%emt 0:00:
14]} 23. Rxd2 {[%emt 0:00:09]} Ree7 {[%emt 0:00:29]} 24. Kf1 {[%emt 0:02:23]}
Rc5 {[%emt 0:00:37]} 25. Ke2 {[%emt 0:00:19]} Rec7 {[%emt 0:00:18]} 26. Kd1 {
[%emt 0:02:16]} h5 {[%emt 0:06:36]} 27. Bg2 {[%emt 0:01:05]} g6 {[%emt 0:02:49]
} 28. Bf3 {[%emt 0:00:56]} Kg7 {[%emt 0:00:16]} 29. h4 {[%emt 0:04:46]} b5 {
[%emt 0:06:15]} 30. a3 {[%emt 0:04:14]} b4 {[%emt 0:01:31]} 31. axb4 {[%emt 0:
00:22]} axb4 {[%emt 0:00:03]} 32. b3 {[%emt 0:03:32]} Ra7 {[%emt 0:02:08]} 33.
g4 {[%emt 0:00:25]} hxg4 {[%emt 0:05:33]} 34. Bxg4 {[%emt 0:00:02]} Ra8 {
[%emt 0:02:17]} 35. Ke2 {[%emt 0:01:52]} Rh8 {[%emt 0:00:51]} 36. Rh1 {[%emt 0:
00:01]} Rc3 {[%emt 0:01:59]} 37. Rb2 {[%emt 0:00:01]} Kf6 {[%emt 0:00:52]} 38.
Kd2 {[%emt 0:01:58]} Ra8 {[%emt 0:01:30]} 39. Rhb1 {[%emt 0:01:06]} Rc7 {
[%emt 0:00:22]} 40. Rc2 {[%emt 0:01:27]} Rxc2+ {[%emt 0:00:07]} 41. Kxc2 {
[%emt 0:30:08]} Ra2+ {[%emt 0:30:31]} 42. Kd1 {[%emt 0:00:16]} Rxf2 {[%emt 0:
00:00]} 43. h5 {[%emt 0:00:00]} Kg5 {[%emt 0:00:00]} 44. hxg6 {[%emt 0:00:00]}
fxg6 {[%emt 0:00:00]} 45. Be6 {[%emt 0:00:00]} Kf4 {[%emt 0:00:00]} 0-1

[Event "23rd ETCC Women 2021"]
[Site "Catez"]
[Date "2021.11.15"]
[Round "4.27"]
[White "Benmesbah, Natacha"]
[Black "Levitan, Ronit"]
[Result "1-0"]
[ECO "C77"]
[WhiteElo "2256"]
[BlackElo "2068"]
[Annotator "NA"]
[PlyCount "81"]
[EventDate "2021.11.08"]
[EventType "team-tourn"]
[EventCountry "SLO"]
[SourceTitle "playchess.com"]
[Source "ChessBase"]
[SourceQuality "1"]
[WhiteTeam "France"]
[BlackTeam "Israel"]
[WhiteTeamCountry "FRA"]
[BlackTeamCountry "ISR"]
[TimeControl "40/5400+30:1800+30"]

1. e4 {[%emt 0:00:03]} e5 {[%emt 0:01:17]} 2. Nf3 {[%emt 0:00:04]} Nc6 {
[%emt 0:00:17]} 3. Bb5 {[%emt 0:00:07]} a6 {[%emt 0:00:15]} 4. Ba4 {[%emt 0:00:
04]} Nf6 {[%emt 0:00:18]} 5. Nc3 {[%emt 0:00:04]} b5 {[%emt 0:03:06]} 6. Bb3 {
[%emt 0:00:05]} Be7 {[%emt 0:01:26]} 7. a4 {[%emt 0:00:37]} b4 {[%emt 0:06:42]}
8. Nd5 {[%emt 0:00:39]} a5 {[%emt 0:05:32]} 9. d4 {[%emt 0:11:03]} Nxd4 {
[%emt 0:05:37]} 10. Nxd4 {[%emt 0:03:28]} exd4 {[%emt 0:00:13]} 11. O-O {
[%emt 0:02:14]} O-O {[%emt 0:02:30]} 12. Nxe7+ {[%emt 0:08:51]} Qxe7 {[%emt 0:
00:07]} 13. Qxd4 {[%emt 0:00:09]} c5 {[%emt 0:08:16]} 14. Qe3 {[%emt 0:00:49]}
Bb7 {[%emt 0:00:54]} 15. f3 {[%emt 0:06:13]} Rfe8 {[%emt 0:09:28]} 16. Qf2 {
[%emt 0:03:42]} d6 {[%emt 0:02:26]} 17. Rd1 {[%emt 0:04:53]} Rad8 {[%emt 0:02:
50]} 18. Be3 {[%emt 0:07:00]} Qe5 {[%emt 0:01:37]} 19. Qg3 {[%emt 0:13:00]} Qe7
{[%emt 0:23:25]} 20. Bg5 {[%emt 0:08:22]} Kh8 {[%emt 0:08:54]} 21. Bc4 {
[%emt 0:04:00]} h6 {[%emt 0:01:18]} 22. Qh4 {[%emt 0:00:22]} Kg8 {[%emt 0:01:
13]} 23. Bxf6 {[%emt 0:01:04]} Qxf6 {[%emt 0:00:06]} 24. Qxf6 {[%emt 0:00:03]}
gxf6 {[%emt 0:00:07]} 25. g4 {[%emt 0:01:07]} d5 {[%emt 0:08:33]} 26. exd5 {
[%emt 0:02:36]} Re5 {[%emt 0:01:20]} 27. Re1 {[%emt 0:01:45]} Rde8 {[%emt 0:03:
36]} 28. Kf2 {[%emt 0:04:38]} Kf8 {[%emt 0:00:55]} 29. Rxe5 {[%emt 0:00:08]}
Rxe5 {[%emt 0:00:56]} 30. Rd1 {[%emt 0:00:07]} Ke7 {[%emt 0:00:22]} 31. d6+ {
[%emt 0:00:31]} Ke8 {[%emt 0:00:28]} 32. Bxf7+ {[%emt 0:02:49]} Kd7 {[%emt 0:
00:29]} 33. Bc4 {[%emt 0:00:32]} Bc6 {[%emt 0:00:25]} 34. b3 {[%emt 0:00:12]}
Re8 {[%emt 0:01:06]} 35. Bd3 {[%emt 0:00:51]} Rh8 {[%emt 0:00:33]} 36. Bf5+ {
[%emt 0:00:26]} Kd8 {[%emt 0:00:10]} 37. Re1 {[%emt 0:01:01]} h5 {[%emt 0:00:
53]} 38. Kg3 {[%emt 0:00:11]} h4+ {[%emt 0:00:17]} 39. Kf4 {[%emt 0:00:39]} Bd7
{[%emt 0:01:04]} 40. Re7 {[%emt 0:00:28]} Bc6 {[%emt 0:00:36]} 41. Rc7 {
[%emt 0:30:22]} 1-0

[Event "23rd ETCC Women 2021"]
[Site "Catez"]
[Date "2021.11.15"]
[Round "4.28"]
[White "Katkov, Michelle"]
[Black "Navrotescu, Andreea"]
[Result "1-0"]
[ECO "B22"]
[WhiteElo "2059"]
[BlackElo "2210"]
[Annotator "NA"]
[PlyCount "101"]
[EventDate "2021.11.08"]
[EventType "team-tourn"]
[EventCountry "SLO"]
[SourceTitle "playchess.com"]
[Source "ChessBase"]
[SourceQuality "1"]
[WhiteTeam "Israel"]
[BlackTeam "France"]
[WhiteTeamCountry "ISR"]
[BlackTeamCountry "FRA"]
[TimeControl "40/5400+30:1800+30"]

1. e4 {[%emt 0:00:03]} c5 {[%emt 0:00:05]} 2. c3 {[%emt 0:00:13]} Nf6 {[%emt 0:
00:05]} 3. e5 {[%emt 0:00:04]} Nd5 {[%emt 0:00:04]} 4. d4 {[%emt 0:00:05]} cxd4
{[%emt 0:00:08]} 5. cxd4 {[%emt 0:00:04]} Nc6 {[%emt 0:00:11]} 6. Nf3 {[%emt 0:
00:04]} g6 {[%emt 0:00:14]} 7. Qb3 {[%emt 0:05:09]} e6 {[%emt 0:00:39]} 8. Nc3
{[%emt 0:01:47]} Nxc3 {[%emt 0:00:22]} 9. bxc3 {[%emt 0:00:12]} b6 {[%emt 0:00:
42]} 10. h4 {[%emt 0:11:02]} h6 {[%emt 0:02:16]} 11. Bd3 {[%emt 0:02:15]} Bb7 {
[%emt 0:01:52]} 12. c4 {[%emt 0:06:27]} Bb4+ {[%emt 0:23:07]} 13. Kf1 {[%emt 0:
00:50]} Be7 {[%emt 0:00:14]} 14. Bb2 {[%emt 0:12:46]} Na5 {[%emt 0:09:49]} 15.
Qc2 {[%emt 0:05:04]} Rc8 {[%emt 0:07:34]} 16. Qe2 {[%emt 0:10:19]} b5 {[%emt 0:
19:39]} 17. cxb5 {[%emt 0:02:10]} Bd5 {[%emt 0:00:27]} 18. Nd2 {[%emt 0:07:34]}
d6 {[%emt 0:05:34]} 19. Rh3 {[%emt 0:05:56]} Qb6 {[%emt 0:08:14]} 20. Be4 {
[%emt 0:06:05]} Bxe4 {[%emt 0:04:15]} 21. Nxe4 {[%emt 0:00:07]} d5 {[%emt 0:00:
05]} 22. Nd2 {[%emt 0:03:06]} Rc2 {[%emt 0:00:54]} 23. Bc3 {[%emt 0:00:26]}
Rxc3 {[%emt 0:09:08]} 24. Rxc3 {[%emt 0:00:07]} Qxd4 {[%emt 0:00:05]} 25. Rac1
{[%emt 0:05:35]} Qxh4 {[%emt 0:02:06]} 26. Kg1 {[%emt 0:01:30]} O-O {[%emt 0:
00:47]} 27. Rc7 {[%emt 0:00:24]} Bb4 {[%emt 0:03:21]} 28. Nf3 {[%emt 0:00:59]}
Qf4 {[%emt 0:00:30]} 29. g3 {[%emt 0:02:37]} Qg4 {[%emt 0:00:01]} 30. Rxa7 {
[%emt 0:01:23]} Nc4 {[%emt 0:00:01]} 31. Rc7 {[%emt 0:00:44]} Nd2 {[%emt 0:02:
11]} 32. Kg2 {[%emt 0:00:43]} Ba5 {[%emt 0:00:03]} 33. Ra7 {[%emt 0:03:10]} Bb6
{[%emt 0:01:01]} 34. Ra6 {[%emt 0:00:38]} Bxf2 {[%emt 0:00:34]} 35. Qxf2 {
[%emt 0:00:24]} Ne4 {[%emt 0:00:01]} 36. Qe1 {[%emt 0:00:25]} f6 {[%emt 0:00:
21]} 37. Nh2 {[%emt 0:00:42]} Qg5 {[%emt 0:00:54]} 38. Rac6 {[%emt 0:01:05]}
Qxe5 {[%emt 0:01:04]} 39. Rc8 {[%emt 0:00:49]} Qb2+ {[%emt 0:00:09]} 40. R1c2 {
[%emt 0:00:56]} Qxb5 {[%emt 0:00:13]} 41. Rxf8+ {[%emt 0:30:06]} Kxf8 {[%emt 0:
30:01]} 42. Qe3 {[%emt 0:03:01]} g5 {[%emt 0:00:00]} 43. Qa7 {[%emt 0:00:00]}
Nd6 {[%emt 0:00:00]} 44. Qc5 {[%emt 0:00:00]} Qd7 {[%emt 0:00:00]} 45. Ng4 {
[%emt 0:00:00]} Kg7 {[%emt 0:00:00]} 46. Qc7 {[%emt 0:00:00]} Qxc7 {[%emt 0:00:
00]} 47. Rxc7+ {[%emt 0:00:00]} Kg6 {[%emt 0:00:00]} 48. Rc6 {[%emt 0:00:00]}
Nc4 {[%emt 0:00:00]} 49. a4 {[%emt 0:00:00]} h5 {[%emt 0:00:00]} 50. Rxc4 {
[%emt 0:00:00]} dxc4 {[%emt 0:00:00]} 51. Ne3 {[%emt 0:00:00]} 1-0

[Event "23rd ETCC Women 2021"]
[Site "Catez"]
[Date "2021.11.15"]
[Round "4.29"]
[White "Stojkovska, Monika"]
[Black "Gara, Ticia"]
[Result "0-1"]
[ECO "B95"]
[WhiteElo "2066"]
[BlackElo "2331"]
[Annotator "NA"]
[PlyCount "74"]
[EventDate "2021.11.08"]
[EventType "team-tourn"]
[EventCountry "SLO"]
[SourceTitle "playchess.com"]
[Source "ChessBase"]
[SourceQuality "1"]
[WhiteTeam "Macedonia"]
[BlackTeam "Hungary"]
[WhiteTeamCountry "MKD"]
[BlackTeamCountry "HUN"]
[TimeControl "40/5400+30:1800+30"]

1. e4 {[%emt 0:00:14]} c5 {[%emt 0:00:06]} 2. Nf3 {[%emt 0:00:05]} d6 {[%emt 0:
00:11]} 3. d4 {[%emt 0:00:11]} cxd4 {[%emt 0:00:05]} 4. Nxd4 {[%emt 0:00:06]}
Nf6 {[%emt 0:00:06]} 5. Nc3 {[%emt 0:00:14]} a6 {[%emt 0:00:10]} 6. Bg5 {
[%emt 0:00:34]} e6 {[%emt 0:00:19]} 7. f4 {[%emt 0:01:16]} Be7 {[%emt 0:00:18]}
8. Qd2 {[%emt 0:05:20]} h6 {[%emt 0:06:31]} 9. Bxf6 {[%emt 0:06:57]} Bxf6 {
[%emt 0:00:06]} 10. O-O-O {[%emt 0:01:46]} O-O {[%emt 0:02:04]} 11. g4 {
[%emt 0:09:14]} Nc6 {[%emt 0:24:22]} 12. Nxc6 {[%emt 0:12:50]} bxc6 {[%emt 0:
00:05]} 13. h4 {[%emt 0:22:06]} Bxh4 {[%emt 0:11:55]} 14. Qh2 {[%emt 0:12:51]}
Be7 {[%emt 0:11:19]} 15. g5 {[%emt 0:01:00]} Qb6 {[%emt 0:02:55]} 16. Rd3 {
[%emt 0:01:29]} e5 {[%emt 0:06:26]} 17. Bh3 {[%emt 0:02:21]} exf4 {[%emt 0:01:
53]} 18. gxh6 {[%emt 0:00:20]} g5 {[%emt 0:05:44]} 19. Ne2 {[%emt 0:09:00]} Bf6
{[%emt 0:03:33]} 20. Rb3 {[%emt 0:03:19]} Qa5 {[%emt 0:00:59]} 21. Bxc8 {
[%emt 0:04:29]} Raxc8 {[%emt 0:00:17]} 22. Rg1 {[%emt 0:02:01]} Kh8 {[%emt 0:
03:52]} 23. h7 {[%emt 0:00:20]} Rb8 {[%emt 0:03:34]} 24. Qh6 {[%emt 0:02:12]}
Qe5 {[%emt 0:01:34]} 25. c3 {[%emt 0:00:31]} f3 {[%emt 0:04:57]} 26. Nd4 {
[%emt 0:00:24]} Bg7 {[%emt 0:02:38]} 27. Qh5 {[%emt 0:01:25]} f2 {[%emt 0:02:
35]} 28. Rf1 {[%emt 0:00:12]} Rxb3 {[%emt 0:01:14]} 29. axb3 {[%emt 0:00:42]}
Qf4+ {[%emt 0:01:02]} 30. Kd1 {[%emt 0:00:15]} g4 {[%emt 0:01:23]} 31. Qh4 {
[%emt 0:01:24]} Bxd4 {[%emt 0:02:22]} 32. cxd4 {[%emt 0:00:41]} Qf3+ {[%emt 0:
00:03]} 33. Kd2 {[%emt 0:00:01]} g3 {[%emt 0:00:32]} 34. Qe7 {[%emt 0:00:47]}
Qf4+ {[%emt 0:00:28]} 35. Ke2 {[%emt 0:00:47]} Qg4+ {[%emt 0:01:42]} 36. Kd2 {
[%emt 0:00:10]} Qg7 {[%emt 0:00:20]} 37. Qxd6 {[%emt 0:00:52]} g2 {[%emt 0:00:
20]} 0-1

[Event "23rd ETCC Women 2021"]
[Site "Catez"]
[Date "2021.11.15"]
[Round "4.30"]
[White "Gaal, Zsoka"]
[Black "Trajkovska, Sanja"]
[Result "1-0"]
[ECO "D02"]
[WhiteElo "2336"]
[BlackElo "1960"]
[Annotator "NA"]
[PlyCount "69"]
[EventDate "2021.11.08"]
[EventType "team-tourn"]
[EventCountry "SLO"]
[SourceTitle "playchess.com"]
[Source "ChessBase"]
[SourceQuality "1"]
[WhiteTeam "Hungary"]
[BlackTeam "Macedonia"]
[WhiteTeamCountry "HUN"]
[BlackTeamCountry "MKD"]
[TimeControl "40/5400+30:1800+30"]

1. Nf3 {[%emt 0:00:09]} d5 {[%emt 0:00:07]} 2. g3 {[%emt 0:00:08]} Nc6 {
[%emt 0:00:07]} 3. d4 {[%emt 0:00:08]} Bf5 {[%emt 0:00:10]} 4. Bg2 {[%emt 0:00:
26]} Nb4 {[%emt 0:00:06]} 5. Na3 {[%emt 0:00:06]} e6 {[%emt 0:00:11]} 6. O-O {
[%emt 0:02:16]} Be7 {[%emt 0:00:14]} 7. c3 {[%emt 0:05:01]} Nc6 {[%emt 0:00:05]
} 8. Qb3 {[%emt 0:02:02]} Rb8 {[%emt 0:00:09]} 9. Ne5 {[%emt 0:06:03]} Nxe5 {
[%emt 0:05:01]} 10. dxe5 {[%emt 0:01:01]} c6 {[%emt 0:01:31]} 11. c4 {[%emt 0:
12:40]} Qc7 {[%emt 0:11:09]} 12. cxd5 {[%emt 0:05:41]} exd5 {[%emt 0:00:00]}
13. Be3 {[%emt 0:04:55]} Qa5 {[%emt 0:17:16]} 14. Nc2 {[%emt 0:04:30]} Bc5 {
[%emt 0:04:19]} 15. Nd4 {[%emt 0:04:45]} Ne7 {[%emt 0:06:32]} 16. Nb5 {[%emt 0:
08:51]} Qb4 {[%emt 0:23:55]} 17. Bxc5 {[%emt 0:05:28]} Qxc5 {[%emt 0:00:06]}
18. Nd6+ {[%emt 0:00:14]} Kf8 {[%emt 0:01:06]} 19. Qf3 {[%emt 0:02:07]} Be6 {
[%emt 0:08:37]} 20. Nxf7 {[%emt 0:01:47]} Kg8 {[%emt 0:00:34]} 21. Nxh8 {
[%emt 0:02:48]} Kxh8 {[%emt 0:01:59]} 22. Qc3 {[%emt 0:01:37]} Qb6 {[%emt 0:02:
03]} 23. b4 {[%emt 0:02:19]} Qc7 {[%emt 0:04:30]} 24. Rac1 {[%emt 0:00:52]} Rd8
{[%emt 0:02:47]} 25. Rfd1 {[%emt 0:02:00]} Ng6 {[%emt 0:02:56]} 26. f4 {
[%emt 0:01:18]} Qb6+ {[%emt 0:02:26]} 27. Qd4 {[%emt 0:02:40]} Ne7 {[%emt 0:02:
37]} 28. e4 {[%emt 0:03:43]} g6 {[%emt 0:01:47]} 29. Qxb6 {[%emt 0:02:13]} axb6
{[%emt 0:00:05]} 30. exd5 {[%emt 0:00:26]} Nxd5 {[%emt 0:01:58]} 31. b5 {
[%emt 0:00:51]} c5 {[%emt 0:01:04]} 32. g4 {[%emt 0:00:38]} Rd7 {[%emt 0:00:26]
} 33. f5 {[%emt 0:00:08]} gxf5 {[%emt 0:00:26]} 34. gxf5 {[%emt 0:00:02]} Ne3 {
[%emt 0:00:28]} 35. fxe6 {[%emt 0:00:14]} 1-0

[Event "23rd ETCC Women 2021"]
[Site "Catez"]
[Date "2021.11.15"]
[Round "4.31"]
[White "Nikolovska, Dragana"]
[Black "Terbe, Julianna"]
[Result "0-1"]
[ECO "C86"]
[WhiteElo "1877"]
[BlackElo "2318"]
[Annotator "ChessBase"]
[PlyCount "102"]
[EventDate "2021.11.08"]
[EventType "team-tourn"]
[EventCountry "SLO"]
[SourceTitle "playchess.com"]
[Source "ChessBase"]
[SourceQuality "1"]
[WhiteTeam "Macedonia"]
[BlackTeam "Hungary"]
[WhiteTeamCountry "MKD"]
[BlackTeamCountry "HUN"]
[TimeControl "40/5400+30:1800+30"]

1. e4 {[%emt 0:00:06]} e5 {[%emt 0:00:05]} 2. Nf3 {[%emt 0:00:10]} Nc6 {
[%emt 0:00:06]} 3. Bb5 {[%emt 0:00:10]} a6 {[%emt 0:00:09]} 4. Ba4 {[%emt 0:00:
07]} Nf6 {[%emt 0:00:06]} 5. Qe2 {[%emt 0:00:16]} b5 {[%emt 0:00:18]} 6. Bb3 {
[%emt 0:00:09]} Be7 {[%emt 0:00:08]} 7. c3 {[%emt 0:02:21]} d5 {[%emt 0:00:06]}
8. d3 {[%emt 0:01:21]} O-O {[%emt 0:00:07]} 9. O-O {[%emt 0:04:49]} Be6 {
[%emt 0:00:06]} 10. Nbd2 {[%emt 0:11:40]} h6 {[%emt 0:00:47]} 11. Re1 {[%emt 0:
02:43]} Re8 {[%emt 0:00:23]} 12. a3 {[%emt 0:07:01]} Bd6 {[%emt 0:02:33]} 13.
Ba2 {[%emt 0:01:43]} Ne7 {[%emt 0:20:27]} 14. Nf1 {[%emt 0:09:14]} c5 {[%emt 0:
03:46]} 15. Ng3 {[%emt 0:05:35]} Qc7 {[%emt 0:10:53]} 16. Nh4 {[%emt 0:03:22]}
Rad8 {[%emt 0:03:52]} 17. h3 {[%emt 0:07:36]} c4 {[%emt 0:07:42]} 18. Qf3 {
[%emt 0:05:44]} Nh7 {[%emt 0:07:43]} 19. Nhf5 {[%emt 0:05:10]} dxe4 {[%emt 0:
09:55]} 20. dxe4 {[%emt 0:03:24]} Nxf5 {[%emt 0:04:18]} 21. Nxf5 {[%emt 0:01:
15]} Bf8 {[%emt 0:02:09]} 22. Bb1 {[%emt 0:00:59]} Rd7 {[%emt 0:02:59]} 23. Bc2
{[%emt 0:01:42]} Red8 {[%emt 0:00:22]} 24. Be3 {[%emt 0:03:33]} a5 {[%emt 0:04:
50]} 25. Kh1 {[%emt 0:05:47]} f6 {[%emt 0:02:46]} 26. Qg4 {[%emt 0:03:01]} Kh8
{[%emt 0:00:51]} 27. Kh2 {[%emt 0:05:14]} Bf7 {[%emt 0:01:49]} 28. h4 {[%emt 0:
00:50]} h5 {[%emt 0:00:39]} 29. Qg3 {[%emt 0:00:46]} g6 {[%emt 0:01:35]} 30.
Nh6 {[%emt 0:00:39]} Be8 {[%emt 0:00:57]} 31. Qf3 {[%emt 0:04:33]} Bc5 {
[%emt 0:07:29]} 32. Bc1 {[%emt 0:01:54]} Kg7 {[%emt 0:01:55]} 33. g4 {[%emt 0:
01:37]} Rd2 {[%emt 0:00:45]} 34. Re2 {[%emt 0:02:01]} hxg4 {[%emt 0:02:45]} 35.
Nxg4 {[%emt 0:00:18]} Rxe2 {[%emt 0:00:49]} 36. Qxe2 {[%emt 0:00:02]} f5 {
[%emt 0:01:24]} 37. Bh6+ {[%emt 0:01:03]} Kh8 {[%emt 0:00:24]} 38. exf5 {
[%emt 0:00:40]} e4+ {[%emt 0:00:05]} 39. Kh3 {[%emt 0:00:45]} gxf5 {[%emt 0:00:
04]} 40. Ne3 {[%emt 0:00:34]} Qf7 {[%emt 0:01:46]} 41. Rg1 {[%emt 0:15:46]} Bf8
{[%emt 0:00:15]} 42. Bxf8 {[%emt 0:03:54]} Qxf8 {[%emt 0:00:11]} 43. f3 {
[%emt 0:01:56]} f4 {[%emt 0:04:46]} 44. Nf1 {[%emt 0:03:30]} e3 {[%emt 0:02:21]
} 45. Qg2 {[%emt 0:02:52]} Rd5 {[%emt 0:03:52]} 46. Be4 {[%emt 0:00:52]} Rh5 {
[%emt 0:01:37]} 47. Qg4 {[%emt 0:03:20]} e2 {[%emt 0:05:15]} 48. Nd2 {[%emt 0:
00:31]} Bd7 {[%emt 0:03:01]} 49. Qxd7 {[%emt 0:00:51]} Rxh4+ {[%emt 0:00:05]}
50. Kg2 {[%emt 0:01:31]} Qg8+ {[%emt 0:00:10]} 51. Kf2 {[%emt 0:00:11]} Rh2+ {
[%emt 0:00:18]} 0-1

[Event "23rd ETCC Women 2021"]
[Site "Catez"]
[Date "2021.11.15"]
[Round "4.32"]
[White "Mihok-Juhasz, Barbara"]
[Black "Manova, Ivana"]
[Result "1-0"]
[ECO "C45"]
[WhiteElo "2258"]
[BlackElo "1809"]
[Annotator "NA"]
[PlyCount "87"]
[EventDate "2021.11.08"]
[EventType "team-tourn"]
[EventCountry "SLO"]
[SourceTitle "playchess.com"]
[Source "ChessBase"]
[SourceQuality "1"]
[WhiteTeam "Hungary"]
[BlackTeam "Macedonia"]
[WhiteTeamCountry "HUN"]
[BlackTeamCountry "MKD"]
[TimeControl "40/5400+30:1800+30"]

1. e4 {[%emt 0:00:04]} e5 {[%emt 0:00:14]} 2. Nf3 {[%emt 0:00:06]} Nc6 {
[%emt 0:00:13]} 3. d4 {[%emt 0:00:04]} exd4 {[%emt 0:00:33]} 4. Nxd4 {[%emt 0:
00:05]} Bc5 {[%emt 0:00:29]} 5. Nb3 {[%emt 0:00:07]} Bb6 {[%emt 0:00:06]} 6.
Nc3 {[%emt 0:00:05]} Nge7 {[%emt 0:02:03]} 7. Qe2 {[%emt 0:00:57]} d6 {[%emt 0:
01:18]} 8. Be3 {[%emt 0:00:23]} O-O {[%emt 0:02:06]} 9. O-O-O {[%emt 0:00:18]}
f5 {[%emt 0:02:53]} 10. f4 {[%emt 0:00:05]} Qe8 {[%emt 0:04:43]} 11. g3 {
[%emt 0:29:13]} Qg6 {[%emt 0:05:57]} 12. Bg2 {[%emt 0:05:11]} Be6 {[%emt 0:06:
19]} 13. Kb1 {[%emt 0:07:10]} Rfe8 {[%emt 0:09:22]} 14. Bxb6 {[%emt 0:10:30]}
axb6 {[%emt 0:00:09]} 15. Rhe1 {[%emt 0:05:22]} fxe4 {[%emt 0:13:00]} 16. Bxe4
{[%emt 0:00:27]} Bf5 {[%emt 0:01:09]} 17. Bf3 {[%emt 0:03:23]} Qf7 {[%emt 0:04:
17]} 18. g4 {[%emt 0:06:02]} Bd7 {[%emt 0:02:13]} 19. Qd2 {[%emt 0:00:14]} Kh8
{[%emt 0:01:22]} 20. Rf1 {[%emt 0:09:32]} Na5 {[%emt 0:03:38]} 21. Nxa5 {
[%emt 0:09:02]} Rxa5 {[%emt 0:00:10]} 22. a3 {[%emt 0:00:03]} Bc6 {[%emt 0:03:
06]} 23. Be2 {[%emt 0:00:05]} Nd5 {[%emt 0:04:19]} 24. Bc4 {[%emt 0:00:13]}
Nxc3+ {[%emt 0:00:08]} 25. Qxc3 {[%emt 0:00:03]} Qf6 {[%emt 0:00:48]} 26. Qxf6
{[%emt 0:06:55]} gxf6 {[%emt 0:01:45]} 27. Rde1 {[%emt 0:00:04]} Ra4 {[%emt 0:
18:37]} 28. b3 {[%emt 0:01:12]} Rxa3 {[%emt 0:02:08]} 29. Rxe8+ {[%emt 0:00:16]
} Bxe8 {[%emt 0:00:02]} 30. Re1 {[%emt 0:00:07]} Ra8 {[%emt 0:04:12]} 31. Re7 {
[%emt 0:00:04]} Bc6 {[%emt 0:04:22]} 32. Bd3 {[%emt 0:00:03]} Re8 {[%emt 0:03:
59]} 33. Rxh7+ {[%emt 0:00:05]} Kg8 {[%emt 0:00:06]} 34. Rxc7 {[%emt 0:00:04]}
Re1+ {[%emt 0:00:25]} 35. Kb2 {[%emt 0:00:05]} Rh1 {[%emt 0:00:47]} 36. Rh7 {
[%emt 0:03:17]} Bf3 {[%emt 0:00:29]} 37. g5 {[%emt 0:00:18]} fxg5 {[%emt 0:00:
31]} 38. fxg5 {[%emt 0:00:05]} Rg1 {[%emt 0:00:42]} 39. h4 {[%emt 0:00:13]} Rg2
{[%emt 0:00:46]} 40. Rh6 {[%emt 0:01:42]} Rg4 {[%emt 0:00:21]} 41. Rg6+ {
[%emt 0:33:48]} Kh8 {[%emt 0:30:15]} 42. h5 {[%emt 0:00:00]} Bd5 {[%emt 0:00:
00]} 43. h6 {[%emt 0:00:00]} b5 {[%emt 0:00:00]} 44. Rxd6 {[%emt 0:00:00]} 1-0